bitfinex/quotes_SOLUSD_20260113
["timestamp","ask_amount","ask_price","bid_price","bid_amount"]
[1768327945223,0.67582358,143.08,143.03,7.65427554]
[1768327945550,3.517721,143.06,143.03,7.65427554]
[1768327947431,4.19354458,143.07,143.03,7.65427554]
[1768327947948,11.18338077,143.07,143.03,7.65427554]
[1768327948243,0.67582358,143.06,143.03,6.99154023]
[1768327954940,0.67582358,143.06,143.02,16.94045631]
[1768327954941,0.71184002,143.05,143.02,19.75199204]
[1768327955139,0.71184002,143.05,143.02,6.99199204]
[1768327956342,0.71184002,143.05,143.01,23.93941715]
[1768327958754,0.71184002,143.05,143.01,20.42169615]
[1768327958955,0.71184002,143.07,143.02,0.68938102]
[1768327959162,0.71184002,143.08,143.04,4.20710202]
[1768327959560,0.71184002,143.08,143.04,16.96710202]
[1768327959753,0.71184002,143.08,143.05,0.68938102]
[1768327960163,0.71184002,143.1,143.06,4.20710202]
[1768327961359,0.71184002,143.1,143.06,11.19678904]
[1768327962759,0.71184002,143.12,143.09,2.792721]
[1768327962938,0.71184002,143.14,143.1,0.68938102]
[1768327964250,7.64043569,143.13,143.09,4.20710202]
[1768327964963,6.98665548,143.13,143.1,0.68938102]
[1768327965361,6.98665548,143.13,143.1,4.20710202]
[1768327965553,7.69818209,143.14,143.1,4.20710202]
[1768327966344,7.69818209,143.14,143.11,0.68938102]
[1768327966555,7.63956058,143.15,143.11,0.68938102]
[1768327966873,7.63956058,143.15,143.11,11.19457342]
[1768327967262,7.73911572,143.16,143.12,0.68938102]
[1768327968073,7.73911572,143.16,143.12,0.62938102]
[1768327968271,0.71184002,143.15,143.11,3.517721]
[1768327968974,0.71184002,143.15,143.11,10.5052014]
[1768327969564,7.08521341,143.16,143.12,3.517721]
[1768327969871,0.1,143.16,143.13,3.517721]
[1768327970079,0.1,143.16,143.13,4.20710202]
[1768327970277,0.1,143.16,143.13,0.68938102]
[1768327970481,0.1,143.16,143.13,4.20710202]
[1768327971049,0.1,143.16,143.15,0.68938102]
[1768327971050,1e-08,143.16,143.15,0.68938102]
[1768327971253,0.1,143.18,143.15,4.20710202]
[1768327971254,0.81184002,143.18,143.15,4.20710202]
[1768327971490,0.1,143.18,143.16,4.20710202]
[1768327971863,0.1,143.18,143.16,3.517721]
[1768327972063,1e-08,143.18,143.17,3.517721]
[1768327972272,0.1,143.19,143.17,3.517721]
[1768327973282,0.1,143.19,143.18,4.20710202]
[1768327973791,0.1,143.19,143.18,0.68938102]
[1768327973960,0.1,143.19,143.18,4.20710202]
[1768327974159,0.1,143.19,143.18,2.89733694]
[1768327974469,0.1,143.21,143.18,2.89733694]
[1768327974671,0.1,143.21,143.19,3.517721]
[1768327974874,0.1,143.21,143.19,4.20710202]
[1768327975065,7.08245667,143.22,143.2,4.20710202]
[1768327975066,0.1,143.22,143.2,4.20710202]
[1768327975266,0.1,143.22,143.2,4.14710202]
[1768327975465,0.1,143.22,143.2,3.517721]
[1768327975961,7.18194605,143.22,143.17,3.517721]
[1768327976173,7.18194605,143.22,143.17,16.257721]
[1768327976666,0.15879213,143.21,143.17,16.257721]
[1768327976890,7.08234215,143.22,143.17,16.257721]
[1768327977073,7.08234215,143.22,143.18,3.517721]
[1768327977274,7.08234215,143.22,143.2,0.68938102]
[1768327977478,0.1,143.22,143.2,4.20710202]
[1768327979268,0.1,143.22,143.19,3.517721]
[1768327979469,7.18192713,143.22,143.18,4.20710202]
[1768327979665,7.18192713,143.22,143.17,23.9317838]
[1768327979869,0.1,143.22,143.19,0.68938102]
[1768327980189,0.1,143.22,143.2,4.20710202]
[1768327980776,0.1,143.22,143.2,3.517721]
[1768327981091,0.1,143.22,143.19,11.19079752]
[1768327981771,0.1,143.22,143.19,4.20710202]
[1768327981973,7.08242847,143.22,143.18,4.20710202]
[1768327982270,0.10019579,143.21,143.18,3.517721]
[1768327982473,7.08242847,143.22,143.19,0.68938102]
[1768327982770,7.08242847,143.22,143.18,11.19120293]
[1768327983079,0.1,143.22,143.19,3.517721]
[1768327984495,0.1,143.22,143.18,20.41348193]
[1768327984803,0.1,143.22,143.19,3.517721]
[1768327985994,7.08227958,143.22,143.18,4.20710202]
[1768327986794,7.18127958,143.22,143.18,4.20710202]
[1768327986991,7.18127958,143.22,143.18,11.19117888]
[1768327987669,7.18127958,143.22,143.21,4.23456086]
[1768327987670,0.1,143.22,143.21,4.23456086]
[1768327988014,0.1,143.23,143.21,4.23456086]
[1768327989699,0.1,143.23,143.21,0.71683986]
[1768327989901,0.1,143.23,143.21,11.2173074]
[1768327991299,0.1,143.23,143.2,23.95758602]
[1768327992299,0.16,143.27,143.22,4.23456086]
[1768327992478,10.65773348,143.27,143.22,4.23456086]
[1768327992676,7.13895592,143.29,143.25,3.517721]
[1768327993375,7.13895592,143.29,143.24,11.21573363]
[1768327993778,6.97895592,143.29,143.26,4.23456086]
[1768327994497,3.6173249,143.28,143.22,4.23456086]
[1768327994791,0.15879213,143.27,143.22,11.21672857]
[1768327994993,3.616721,143.28,143.23,0.71683986]
[1768327995178,3.616721,143.28,143.23,11.21620803]
[1768327995498,6.97982829,143.27,143.23,11.21620803]
[1768327995693,6.97982829,143.27,143.23,4.23456086]
[1768327995872,7.13921829,143.27,143.22,16.97456086]
[1768327996073,7.13921829,143.27,143.22,4.23456086]
[1768327996477,10.65693929,143.27,143.22,4.23456086]
[1768327996676,7.13921829,143.27,143.22,4.23456086]
[1768327996873,10.65693929,143.27,143.22,4.23456086]
[1768327997070,7.13921829,143.27,143.22,11.21675456]
[1768327998480,6.97982829,143.27,143.23,11.19081429]
[1768327998978,6.97982829,143.27,143.24,0.69140697]
[1768328000800,6.97982829,143.27,143.22,11.19126143]
[1768328001598,6.97982829,143.27,143.23,0.69140697]
[1768328002004,10.65693929,143.27,143.22,19.72213346]
[1768328002390,10.65693929,143.27,143.22,20.41354043]
[1768328003386,9.38409746,143.27,143.22,20.41354043]
[1768328003586,7.13921829,143.27,143.22,20.41354043]
[1768328003894,7.13921829,143.27,143.23,0.69140697]
[1768328004082,9.38409746,143.27,143.23,0.69140697]
[1768328004895,7.13921829,143.27,143.23,7.67305956]
[1768328005093,9.38442407,143.28,143.23,9.91793873]
[1768328005494,9.38442407,143.28,143.23,7.67305956]
[1768328006390,2.24487917,143.27,143.23,0.69140697]
[1768328006602,2.34387917,143.27,143.23,0.69140697]
[1768328006984,24.42789777,143.28,143.22,6.98215789]
[1768328007188,2.24487917,143.26,143.22,6.98215789]
[1768328008118,9.22535135,143.26,143.22,7.67356486]
[1768328008412,6.98047218,143.26,143.22,7.67356486]
[1768328008612,6.98047218,143.26,143.23,0.69140697]
[1768328009210,26.67257319,143.28,143.23,0.69140697]
[1768328009425,26.67257319,143.28,143.23,7.67314711]
[1768328010007,2.24487917,143.27,143.22,6.98214027]
[1768328010185,2.24487917,143.27,143.23,0.69140697]
[1768328010915,2.24487917,143.26,143.21,20.41397244]
[1768328011298,9.19568196,143.25,143.21,13.43140697]
[1768328011814,9.19568196,143.25,143.22,0.69140697]
[1768328012016,9.19568196,143.25,143.21,13.43140697]
[1768328012217,9.19568196,143.25,143.18,6.98393115]
[1768328012218,2.24487917,143.23,143.18,6.98393115]
[1768328012516,2.24487917,143.22,143.19,0.69140697]
[1768328013307,2.24487917,143.21,143.19,0.69140697]
[1768328014010,2.24487917,143.21,143.17,7.67608727]
[1768328014992,2.24487917,143.2,143.17,0.69140697]
[1768328015188,2.24487917,143.19,143.17,0.69140697]
[1768328015637,2.24487917,143.19,143.15,0.66719167]
[1768328015638,2.24487917,143.18,143.15,0.66719167]
[1768328015825,2.24487917,143.16,143.13,0.66719167]
[1768328016492,2.24487917,143.16,143.11,17.46848905]
[1768328016493,2.24487917,143.15,143.11,0.66719167]
[1768328017092,24.44316991,143.19,143.11,0.66719167]
[1768328017293,2.24487917,143.15,143.12,0.66719167]
[1768328017989,2.24487917,143.16,143.12,0.66719167]
[1768328018307,2.24487917,143.17,143.12,0.66719167]
[1768328018523,2.24487917,143.18,143.13,0.66719167]
[1768328018689,2.24487917,143.19,143.14,0.66719167]
[1768328019203,24.4396341,143.21,143.15,0.66719167]
[1768328019589,2.24487917,143.2,143.15,0.66719167]
[1768328020103,6.9827526,143.21,143.16,0.66719167]
[1768328020422,2.24487917,143.2,143.17,0.66719167]
[1768328021003,6.98237871,143.22,143.17,0.66719167]
[1768328021201,9.22725788,143.22,143.17,0.66719167]
[1768328021403,2.24487917,143.21,143.17,0.66719167]
[1768328023624,9.22811646,143.21,143.17,0.66719167]
[1768328023818,9.22811646,143.21,143.17,7.65182028]
[1768328024025,2.24487917,143.21,143.17,7.65182028]
[1768328024327,2.24487917,143.21,143.17,0.66719167]
[1768328024904,2.24487917,143.21,143.18,0.66719167]
[1768328025114,9.22714421,143.22,143.18,0.66719167]
[1768328025500,9.19714419,143.22,143.18,0.66719167]
[1768328027413,6.95226502,143.22,143.18,0.66719167]
[1768328027626,9.19714419,143.22,143.18,0.66719167]
[1768328028407,37.14348329,143.28,143.18,0.66719167]
[1768328028408,267.2,143.29,143.2,2.24487917]
[1768328028609,34.88974999,143.31,143.22,0.66719167]
[1768328028610,6.97934115,143.28,143.22,0.66719167]
[1768328028910,2.24487917,143.27,143.22,0.66719167]
[1768328029632,9.22519468,143.26,143.22,0.66719167]
[1768328029933,6.98031551,143.26,143.22,0.66719167]
[1768328030737,6.98031551,143.26,143.23,0.66719167]
[1768328032806,9.22519468,143.26,143.21,0.66719167]
[1768328033349,9.22519468,143.26,143.22,0.66719167]
[1768328033929,9.19519468,143.26,143.22,0.66719167]
[1768328034149,6.95031551,143.26,143.22,0.66719167]
[1768328035040,2.24487917,143.27,143.22,0.66719167]
[1768328036133,2.24487917,143.27,143.23,0.66719167]
[1768328036837,6.98031551,143.26,143.23,0.66719167]
[1768328037226,9.22489299,143.27,143.23,0.66719167]
[1768328037528,6.97885407,143.29,143.24,0.66719167]
[1768328037724,9.22373324,143.29,143.25,0.66719167]
[1768328038034,2.24487917,143.3,143.26,0.66719167]
[1768328038240,17.444085,143.32,143.27,0.66719167]
[1768328038441,19.68896417,143.32,143.27,0.66719167]
[1768328038644,24.41917252,143.33,143.27,0.66719167]
[1768328038832,6.97885407,143.29,143.27,0.66719167]
[1768328039521,6.97811837,143.31,143.27,0.66719167]
[1768328040213,9.22299754,143.31,143.27,0.66719167]
[1768328040824,24.4196065,143.33,143.27,0.66719167]
[1768328041031,2.24487917,143.31,143.27,0.66719167]
[1768328042139,2.24487917,143.31,143.26,6.98019391]
[1768328042527,24.4196065,143.33,143.27,0.66719167]
[1768328042724,9.22324623,143.3,143.27,0.66719167]
[1768328042927,9.22324623,143.3,143.24,6.98115403]
[1768328043130,2.24487917,143.29,143.24,12.74]
[1768328044144,2.80838496,143.29,143.24,12.74]
[1768328044736,2.80838496,143.29,143.24,6.98125506]
[1768328044737,9.787713,143.29,143.24,6.98125506]
[1768328044940,9.787713,143.29,143.24,7.64100618]
[1768328045856,6.97953827,143.28,143.24,0.65975112]
[1768328046041,6.94953826,143.28,143.25,0.65975112]
[1768328046456,6.91953826,143.28,143.25,0.65975112]
[1768328047153,6.97905881,143.29,143.26,0.65975112]
[1768328048247,6.97905881,143.29,143.25,7.64051324]
[1768328048742,9.22393798,143.29,143.25,7.64051324]
[1768328049737,2.24487917,143.28,143.25,0.65975112]
[1768328050237,9.32758304,143.29,143.25,0.65975112]
[1768328050442,2.24487917,143.31,143.26,0.65975112]
[1768328050734,6.97653909,143.34,143.28,0.65975112]
[1768328050957,6.97653909,143.34,143.3,0.65975112]
[1768328051448,7.42105145,143.35,143.31,0.65975112]
[1768328051676,7.07497715,143.37,143.35,0.65975112]
[1768328051954,2.34487917,143.37,143.35,0.65975112]
[1768328052156,0.68195553,143.36,143.32,12.74]
[1768328052332,2.24487917,143.34,143.26,17.45033494]
[1768328052535,2.24487917,143.34,143.28,14.98487917]
[1768328052735,2.24487917,143.34,143.28,21.96387031]
[1768328053171,0.68195553,143.35,143.29,9.22361268]
[1768328053367,2.24487917,143.34,143.28,21.96402972]
[1768328053547,6.97690643,143.33,143.28,21.96402972]
[1768328054067,6.97690643,143.33,143.29,0.65975112]
[1768328054430,2.9268347,143.32,143.28,0.65975112]
[1768328055640,9.90471482,143.31,143.27,13.39975112]
[1768328055835,9.90471482,143.31,143.27,0.65975112]
[1768328056038,2.24487917,143.29,143.26,0.65975112]
[1768328056258,2.24487917,143.29,143.25,13.44388174]
[1768328057055,2.24487917,143.27,143.23,13.44388174]
[1768328057230,2.90772504,143.25,143.21,0.72388174]
[1768328057634,2.24487917,143.24,143.2,12.72]
[1768328057854,2.90772504,143.24,143.2,12.72]
[1768328058061,0.66284587,143.24,143.2,20.42711509]
[1768328058359,9.22577728,143.25,143.2,20.42711509]
[1768328058561,2.90772504,143.24,143.2,0.72388174]
[1768328058862,2.90772504,143.24,143.2,13.44388174]
[1768328059241,2.90772504,143.23,143.2,12.72]
[1768328059844,0.66284587,143.23,143.2,12.72]
[1768328061356,2.90772504,143.23,143.2,12.72]
[1768328061767,2.90772504,143.22,143.2,12.72]
[1768328061960,0.66284587,143.22,143.18,7.70790128]
[1768328062447,2.90772504,143.22,143.18,7.70790128]
[1768328062646,0.66284587,143.22,143.18,7.70790128]
[1768328063547,0.66284587,143.22,143.18,20.44790128]
[1768328064364,11.1549717,143.22,143.18,20.44790128]
[1768328065071,4.17267987,143.22,143.18,20.44790128]
[1768328065573,9.3242714,143.22,143.18,20.44790128]
[1768328065775,16.30671666,143.22,143.18,13.46388174]
[1768328065945,17.450123,143.27,143.19,0.72388174]
[1768328066145,8.69142557,143.24,143.19,9.41530731]
[1768328066348,24.42995129,143.27,143.2,0.72388174]
[1768328066556,8.69142557,143.26,143.22,0.72388174]
[1768328066762,15.67125386,143.27,143.22,0.72388174]
[1768328067076,8.69142557,143.26,143.22,0.72388174]
[1768328067454,6.97982829,143.27,143.22,0.72388174]
[1768328067749,16.33409973,143.27,143.22,7.70587877]
[1768328068470,16.33409973,143.27,143.23,0.72388174]
[1768328069180,0.66284587,143.23,143.13,3.64122476]
[1768328069351,0.66284587,143.16,143.13,3.64122476]
[1768328069544,0.66284587,143.16,143.1,6.98788165]
[1768328069545,0.66284587,143.18,143.12,0.72388174]
[1768328069868,0.66284587,143.2,143.12,0.72388174]
[1768328070066,0.66284587,143.2,143.13,0.72388174]
[1768328070255,9.35427144,143.19,143.13,0.72388174]
[1768328070568,8.69142557,143.18,143.14,0.72388174]
[1768328070772,0.66284587,143.19,143.14,0.72388174]
[1768328070961,8.69142557,143.18,143.14,0.72388174]
[1768328071465,15.67572246,143.18,143.14,0.72388174]
[1768328072256,0.66284587,143.19,143.14,0.72388174]
[1768328072257,0.66284587,143.19,143.15,0.72388174]
[1768328072457,0.66284587,143.19,143.15,0.6038818]
[1768328072859,0.66284587,143.19,143.15,0.54388189]
[1768328073259,6.9833641,143.2,143.15,8.69142557]
[1768328073478,6.98272582,143.22,143.17,8.69142557]
[1768328073783,0.66284587,143.22,143.15,6.98558163]
[1768328073962,0.66284587,143.22,143.17,8.69142557]
[1768328074485,0.66284587,143.22,143.15,6.98558163]
[1768328074657,0.66284587,143.22,143.17,8.69142557]
[1768328074979,7.64533073,143.22,143.17,8.69142557]
[1768328075280,0.70956584,143.21,143.17,8.69142557]
[1768328076487,6.98248486,143.22,143.18,9.37021482]
[1768328076870,7.6920507,143.22,143.18,8.69142557]
[1768328077073,7.6920507,143.22,143.17,8.69142557]
[1768328077382,0.70956584,143.21,143.17,8.69142557]
[1768328078582,0.70956584,143.21,143.17,9.37021482]
[1768328078785,7.69138632,143.23,143.18,9.37021482]
[1768328079087,8.69142557,143.22,143.18,0.67878925]
[1768328079276,15.67373909,143.22,143.18,0.67878925]
[1768328079664,8.69142557,143.21,143.18,0.61878932]
[1768328079865,7.69146093,143.23,143.18,0.61878932]
[1768328080174,16.3828865,143.23,143.18,9.31021489]
[1768328080575,16.3828865,143.23,143.18,22.05021489]
[1768328080767,0.70956584,143.22,143.18,21.43142557]
[1768328081585,0.70956584,143.23,143.18,21.43142557]
[1768328081778,0.70956584,143.23,143.18,22.11021482]
[1768328082389,0.70956584,143.22,143.18,22.11021482]
[1768328082781,0.70956584,143.22,143.18,21.43142557]
[1768328084480,0.70956584,143.22,143.18,12.74]
[1768328084790,0.70956584,143.21,143.18,12.74]
[1768328085796,6.98226789,143.22,143.18,12.74]
[1768328086884,6.98226789,143.22,143.18,13.41878925]
[1768328087395,11.2011391,143.23,143.18,13.41878925]
[1768328087600,0.70956584,143.22,143.18,16.24965628]
[1768328087777,0.70956584,143.26,143.21,3.50965628]
[1768328087978,0.70956584,143.25,143.21,3.50965628]
[1768328088380,0.70956584,143.25,143.18,19.72410058]
[1768328088381,0.70956584,143.25,143.2,3.50965628]
[1768328088893,0.70956584,143.24,143.18,12.74]
[1768328089076,0.70956584,143.24,143.2,3.50965628]
[1768328090605,0.70956584,143.24,143.2,3.4496563]
[1768328090797,7.69121382,143.24,143.2,4.12844555]
[1768328091181,0.70956584,143.24,143.21,3.50965628]
[1768328091977,7.69003745,143.26,143.22,3.50965628]
[1768328092178,0.70956584,143.25,143.22,3.4496563]
[1768328092579,0.70956584,143.25,143.21,0.67878925]
[1768328092898,7.69060288,143.25,143.22,3.50965628]
[1768328093097,7.69060288,143.25,143.21,13.41878925]
[1768328093281,7.69060288,143.25,143.22,3.50965628]
[1768328093484,7.69060288,143.25,143.22,3.4496563]
[1768328093694,7.69060288,143.25,143.22,3.3896563]
[1768328095611,0.70956584,143.25,143.22,3.3896563]
[1768328095899,20.95931561,143.27,143.22,3.3896563]
[1768328095900,0.70956584,143.27,143.23,3.50965628]
[1768328096075,0.70956584,143.27,143.24,3.50965628]
[1768328096802,0.70956584,143.27,143.23,3.50965628]
[1768328097104,7.68951004,143.27,143.23,3.50965628]
[1768328097290,0.70956584,143.26,143.23,3.50965628]
[1768328097990,7.68951004,143.27,143.23,4.18844553]
[1768328098405,0.70956584,143.28,143.24,4.18844553]
[1768328098591,0.70956584,143.29,143.25,4.18844553]
[1768328098794,0.70956584,143.29,143.26,3.50965628]
[1768328099507,7.68801839,143.3,143.26,3.50965628]
[1768328100003,0.70956584,143.29,143.26,3.50965628]
[1768328100183,0.70956584,143.29,143.26,3.44965628]
[1768328100383,7.68746987,143.31,143.27,3.50965628]
[1768328100584,0.70956584,143.3,143.26,3.50965628]
[1768328101611,0.70956584,143.28,143.24,12.74]
[1768328101781,0.70956584,143.28,143.24,16.24965628]
[1768328102094,0.70956584,143.28,143.26,3.50965628]
[1768328102412,0.70956584,143.28,143.25,3.50965628]
[1768328102590,0.70956584,143.28,143.26,3.50965628]
[1768328102791,0.70956584,143.28,143.24,13.41878925]
[1768328102985,0.70956584,143.28,143.25,3.50965628]
[1768328103187,0.70956584,143.28,143.24,16.92844553]
[1768328103382,0.70956584,143.28,143.21,7.66137901]
[1768328103587,0.70956584,143.26,143.23,12.74]
[1768328103808,0.70956584,143.26,143.23,16.24965628]
[1768328104001,6.97982829,143.27,143.23,16.92844553]
[1768328104209,6.97982829,143.27,143.24,3.50965628]
[1768328104509,0.70956584,143.3,143.26,3.50965628]
[1768328105509,0.70956584,143.3,143.27,3.50965628]
[1768328105895,7.68793423,143.3,143.27,3.50965628]
[1768328106207,6.97836839,143.3,143.26,16.94158559]
[1768328106402,6.97809838,143.31,143.27,0.69192931]
[1768328106602,6.97809838,143.31,143.27,4.20158559]
[1768328106803,0.69818238,143.31,143.27,4.20158559]
[1768328107103,7.67579488,143.32,143.27,4.20158559]
[1768328107714,0.69818238,143.31,143.28,12.74]
[1768328107896,0.69818238,143.31,143.28,12.68]
[1768328108803,0.69818238,143.31,143.27,12.74]
[1768328109693,10.48764478,143.31,143.28,0.69192931]
[1768328110119,6.9779885,143.31,143.28,0.69192931]
[1768328110417,3.50965628,143.29,143.22,0.69192931]
[1768328110732,3.50965628,143.26,143.22,0.69192931]
[1768328111300,3.50965628,143.25,143.22,0.69192931]
[1768328112115,3.50965628,143.23,143.2,0.69192931]
[1768328112317,0.69818238,143.23,143.2,12.74]
[1768328112530,11.18778275,143.27,143.22,0.69192931]
[1768328112735,4.20783866,143.27,143.23,12.74]
[1768328112894,3.50965628,143.26,143.23,13.43192931]
[1768328113094,3.50965628,143.25,143.23,0.69192931]
[1768328114130,7.67806597,143.27,143.23,0.69192931]
[1768328114330,3.50965628,143.25,143.23,0.69192931]
[1768328115511,3.50965628,143.24,143.22,12.74]
[1768328115828,3.50965628,143.25,143.22,13.43192931]
[1768328116732,0.71808118,143.25,143.2,0.71552416]
[1768328116916,3.50965628,143.24,143.22,0.71552416]
[1768328117122,3.50965628,143.25,143.22,0.71552416]
[1768328118128,3.50965628,143.24,143.22,0.71552416]
[1768328118433,3.50965628,143.25,143.22,0.71552416]
[1768328118914,3.50965628,143.26,143.22,7.69762784]
[1768328120817,3.50965628,143.25,143.22,0.71552416]
[1768328121313,3.50965628,143.24,143.22,0.71552416]
[1768328121822,7.69845713,143.26,143.22,0.71552416]
[1768328122026,3.50965628,143.25,143.22,0.71552416]
[1768328122424,7.69765102,143.28,143.23,0.71552416]
[1768328122742,0.71808118,143.27,143.24,12.74]
[1768328122944,4.22773746,143.3,143.25,0.71552416]
[1768328123242,0.71808118,143.3,143.25,0.71552416]
[1768328123810,11.20628192,143.3,143.26,0.71552416]
[1768328125337,9.94042124,143.3,143.26,0.71552416]
[1768328126238,18.16202741,143.32,143.26,0.71552416]
[1768328126417,0.71808118,143.31,143.27,12.74]
[1768328126615,0.71808118,143.31,143.27,15.69931976]
[1768328126919,0.71808118,143.31,143.27,12.74]
[1768328127318,0.71808118,143.31,143.28,12.74]
[1768328127525,2.73763536,143.3,143.28,11.29092043]
[1768328127838,2.2437956,143.31,143.28,12.00644459]
[1768328128140,2.2437956,143.32,143.28,12.00644459]
[1768328128342,9.22148187,143.32,143.28,12.00644459]
[1768328128834,6.97768627,143.32,143.29,0.71552416]
[1768328129030,2.2437956,143.32,143.29,0.71552416]
[1768328129621,6.97704706,143.33,143.29,0.71552416]
[1768328129826,2.2437956,143.33,143.29,0.71552416]
[1768328130428,9.3197618,143.33,143.29,0.71552416]
[1768328130626,2.2437956,143.33,143.29,7.69436616]
[1768328130828,2.3427956,143.34,143.3,0.71552416]
[1768328131036,9.31933195,143.34,143.3,0.71552416]
[1768328131816,2.73368696,143.33,143.28,0.71552416]
[1768328132021,2.73368696,143.33,143.29,12.72]
[1768328132221,2.34670451,143.32,143.29,12.72]
[1768328132448,9.32425598,143.32,143.29,12.72]
[1768328133740,9.32413067,143.32,143.29,12.72]
[1768328134432,7.08033507,143.32,143.29,12.72]
[1768328134638,2.73763536,143.33,143.29,13.43552416]
[1768328134943,2.2437956,143.32,143.29,13.43552416]
[1768328135843,2.2437956,143.32,143.29,12.72]
[1768328136341,2.73368696,143.31,143.29,12.72]
[1768328136521,2.2437956,143.31,143.26,0.69424681]
[1768328136722,2.2437956,143.31,143.27,0.69424681]
[1768328136918,24.4209986,143.32,143.26,12.72]
[1768328136919,2.2437956,143.29,143.26,12.72]
[1768328137239,2.73368696,143.27,143.23,13.41424681]
[1768328137433,2.2437956,143.24,143.21,0.69424681]
[1768328137616,2.2437956,143.24,143.21,13.41424681]
[1768328137821,0.49383976,143.27,143.22,0.69424681]
[1768328138120,2.2437956,143.25,143.22,0.69424681]
[1768328139146,0.48989136,143.25,143.21,13.41424681]
[1768328139345,2.2437956,143.23,143.21,13.41424681]
[1768328140128,6.98096875,143.25,143.21,13.41424681]
[1768328140445,2.2437956,143.22,143.19,12.72]
[1768328140753,6.98132675,143.24,143.19,12.72]
[1768328140948,6.98132675,143.24,143.19,19.703715]
[1768328141630,7.66216233,143.25,143.19,19.703715]
[1768328142235,7.66216233,143.25,143.2,0.69424681]
[1768328142722,7.66216233,143.25,143.21,0.69424681]
[1768328143035,7.66216233,143.25,143.2,6.98322739]
[1768328143545,0.68115254,143.24,143.19,19.70358895]
[1768328144243,0.68115254,143.24,143.19,12.72]
[1768328144443,0.68115254,143.24,143.17,6.98464797]
[1768328144630,6.98177756,143.23,143.17,6.98464797]
[1768328144948,7.6629301,143.23,143.17,6.98464797]
[1768328145126,7.6629301,143.23,143.18,0.69424681]
[1768328145325,6.98148138,143.24,143.18,0.69424681]
[1768328145643,7.66210522,143.25,143.18,0.69424681]
[1768328145944,0.68115254,143.24,143.18,0.69424681]
[1768328146926,7.6629301,143.23,143.18,0.69424681]
[1768328147145,7.6626541,143.24,143.19,0.69424681]
[1768328148126,0.68115254,143.24,143.19,0.69424681]
[1768328149050,7.66248536,143.24,143.2,0.69424681]
[1768328149341,0.68115254,143.23,143.19,7.67780176]
[1768328150143,7.66248536,143.24,143.2,0.69424681]
[1768328150450,0.68115254,143.24,143.2,0.69424681]
[1768328150649,0.68115254,143.26,143.2,0.69424681]
[1768328150850,13.42115254,143.26,143.2,0.69424681]
[1768328151041,0.68115254,143.3,143.2,0.69424681]
[1768328151243,13.42115254,143.29,143.21,0.69424681]
[1768328151952,13.42115254,143.29,143.22,0.69424681]
[1768328152254,13.42115254,143.29,143.24,0.69424681]
[1768328152452,20.40003893,143.29,143.24,0.69424681]
[1768328153651,0.68115254,143.28,143.24,7.67541292]
[1768328154237,13.42115254,143.29,143.25,0.69424681]
[1768328154439,20.40011391,143.29,143.25,0.69424681]
[1768328154640,20.40011391,143.29,143.24,6.98116611]
[1768328154641,0.68115254,143.28,143.24,0.69424681]
[1768328155968,0.68115254,143.28,143.24,7.67545875]
[1768328156338,19.71896137,143.29,143.24,6.98121194]
[1768328156540,13.42115254,143.29,143.25,0.69424681]
[1768328156733,20.40013151,143.29,143.25,0.69424681]
[1768328159236,0.68115254,143.28,143.23,0.69424681]
[1768328159650,0.68115254,143.3,143.23,0.69424681]
[1768328161262,0.68115254,143.3,143.24,25.1287623]
[1768328161462,0.68115254,143.29,143.25,0.69424681]
[1768328162450,0.68115254,143.3,143.25,0.69424681]
[1768328163258,0.68115254,143.3,143.26,0.69424681]
[1768328164051,20.39919425,143.31,143.26,0.69424681]
[1768328166154,20.39919425,143.31,143.26,7.67456202]
[1768328166349,19.71804171,143.31,143.26,0.69424681]
[1768328166567,0.65563512,143.3,143.26,0.69424681]
[1768328166963,7.63411965,143.3,143.26,0.69424681]
[1768328167149,7.63411965,143.3,143.25,6.98070659]
[1768328167150,0.65563512,143.29,143.25,6.98070659]
[1768328167349,0.65563512,143.29,143.25,7.7053523]
[1768328168669,0.65563512,143.29,143.24,6.98110768]
[1768328169178,0.65563512,143.29,143.24,0.72464571]
[1768328170155,0.65563512,143.28,143.22,7.70691075]
[1768328170373,0.65563512,143.26,143.22,7.70691075]
[1768328170569,12.72,143.27,143.22,7.70691075]
[1768328170765,12.72,143.27,143.23,0.72464571]
[1768328171777,12.72,143.27,143.23,7.70629429]
[1768328171970,6.97953887,143.28,143.23,7.70629429]
[1768328172478,7.63517399,143.28,143.23,7.70629429]
[1768328173172,0.65563512,143.27,143.23,7.70629429]
[1768328174051,0.65563512,143.27,143.23,0.72464571]
[1768328174256,0.65563512,143.27,143.22,7.70669108]
[1768328174667,0.65563512,143.27,143.22,0.72464571]
[1768328174959,0.65563512,143.27,143.2,7.70784521]
[1768328175160,0.65563512,143.25,143.2,7.70784521]
[1768328175466,0.65563512,143.25,143.18,0.72464571]
[1768328175668,0.65563512,143.25,143.17,3.64027616]
[1768328176073,0.65563512,143.25,143.16,7.70981373]
[1768328176384,0.65563512,143.25,143.18,0.6561528]